bitfinex/quotes_SOLUSD_20260208
["timestamp","ask_amount","ask_price","bid_price","bid_amount"]
[1770561896854,0.5000294,88.408,88.33,5.13032502]
[1770561897083,0.5000294,88.408,88.335,5.36086188]
[1770561897875,0.5000294,88.408,88.343,5.36086188]
[1770561898278,0.5000294,88.406,88.345,5.36086188]
[1770561898881,0.5000294,88.406,88.344,39.61785745]
[1770561900188,0.5000294,88.404,88.344,28.29846961]
[1770561900475,11.31157739,88.405,88.283,5.36086188]
[1770561900476,0.5000294,88.401,88.283,5.36086188]
[1770561900771,0.5000294,88.401,88.25,0.2]
[1770561900772,0.5000294,88.397,88.334,11.32058399]
[1770561900958,0.5000294,88.396,88.334,11.32058399]
[1770561901167,0.5000294,88.395,88.334,11.32058399]
[1770561901485,0.5000294,88.395,88.336,11.32041296]
[1770561902482,0.5000294,88.393,88.322,5.36086188]
[1770561903061,0.5000294,88.393,88.315,5.13032502]
[1770561903062,7.18772804,88.396,88.337,5.13032502]
[1770561903265,0.5000294,88.395,88.337,5.13032502]
[1770561904886,0.5000294,88.395,88.342,10.4911869]
[1770561907084,7.18772804,88.396,88.364,0.47108954]
[1770561908391,28.26628071,88.445,88.347,10.4911869]
[1770561908572,7.22239128,88.447,88.377,0.47108954]
[1770561909065,0.47807829,88.429,88.387,0.47108954]
[1770561909767,7.22239128,88.447,88.387,0.47108954]
[1770561909768,0.47807829,88.437,88.387,0.47108954]
[1770561910182,0.47807829,88.437,88.388,5.36086188]
[1770561910478,0.47807829,88.437,88.397,0.47108954]
[1770561910670,0.47807829,88.445,88.397,0.47108954]
[1770561911079,0.47807829,88.445,88.399,0.47108954]
[1770561911578,0.52263109,88.438,88.399,0.47108954]
[1770561912166,0.47807829,88.432,88.399,0.47108954]
[1770561913581,0.47807829,88.429,88.401,0.47108954]
[1770561917672,0.47807829,88.429,88.402,11.31196126]
[1770561917890,0.47807829,88.429,88.403,0.47284657]
[1770561918594,0.4945084,88.437,88.403,0.47284657]
[1770561918799,0.0445528,88.438,88.403,0.47284657]
[1770561919789,0.0445528,88.438,88.405,0.47284657]
[1770561920689,0.4945084,88.433,88.405,0.47284657]
[1770561920898,0.4945084,88.436,88.405,0.47284657]
[1770561921906,0.4945084,88.429,88.39,0.47284657]
[1770561922502,0.4945084,88.429,88.403,11.31173591]
[1770561923408,0.4945084,88.435,88.396,0.47284657]
[1770561923712,0.4945084,88.435,88.398,0.47284657]
[1770561925297,0.4945084,88.429,88.403,0.47284657]
[1770561926187,0.4945084,88.429,88.404,11.31170535]
[1770561926699,0.4945084,88.429,88.404,11.78455192]
[1770561926879,0.4945084,88.436,88.405,0.47284657]
[1770561927496,0.4945084,88.429,88.405,0.47284657]
[1770561928499,0.4945084,88.429,88.407,0.47284657]
[1770561928998,0.4945084,88.429,88.406,11.31144944]
[1770561929302,0.4945084,88.429,88.4,11.31213716]
[1770561929980,0.0445528,88.438,88.405,11.31151647]
[1770561930234,11.30811367,88.433,88.4,11.31214316]
[1770561931013,0.0445528,88.438,88.393,28.75532659]
[1770561931303,0.0445528,88.438,88.394,0.47284657]
[1770561931983,0.5390612,88.438,88.396,0.47284657]
[1770561932190,0.5390612,88.438,88.393,28.28248002]
[1770561932191,0.5390612,88.438,88.398,0.47284657]
[1770561933185,0.5390612,88.438,88.4,0.47284657]
[1770561934922,0.5390612,88.438,88.402,0.47284657]
[1770561938416,0.5390612,88.438,88.404,0.47284657]
[1770561939420,0.5390612,88.438,88.406,0.47284657]
[1770561939923,0.5390612,88.438,88.408,0.47284657]
[1770561940108,0.4945084,88.433,88.408,0.47284657]
[1770561941319,0.4945084,88.433,88.41,0.47284657]
[1770561941521,0.4945084,88.429,88.409,11.31106561]
[1770561943730,0.4945084,88.429,88.41,0.47284657]
[1770561944230,0.4945084,88.437,88.41,0.47284657]
[1770561944529,0.5945084,88.43,88.411,11.31080974]
[1770561945716,0.5945084,88.43,88.412,0.48735205]
[1770561945927,0.1,88.43,88.412,0.48735205]
[1770561947334,0.1,88.43,88.414,0.48735205]
[1770561948816,0.56061857,88.43,88.413,11.31055387]
[1770561949117,0.56061857,88.43,88.41,0.48735205]
[1770561950442,0.56061857,88.43,88.396,0.4]
[1770561950624,0.46061857,88.428,88.402,11.31195506]
[1770561951338,0.46061857,88.428,88.397,11.3126011]
[1770561951533,0.1,88.43,88.398,0.48735205]
[1770561951710,0.46061857,88.429,88.398,0.48735205]
[1770561952219,0.46061857,88.429,88.397,39.59410386]
[1770561952220,0.46061857,88.429,88.397,11.3126011]
[1770561953537,0.46061857,88.427,88.397,11.3126011]
[1770561954047,0.46061857,88.427,88.378,0.48735205]
[1770561954728,0.46061857,88.427,88.377,11.31506228]
[1770561955040,0.46061857,88.427,88.381,11.31460226]
[1770561957239,0.46061857,88.425,88.373,0.48735205]
[1770561957845,0.46061857,88.425,88.366,11.31644674]
[1770561958951,0.46061857,88.425,88.354,0.48735205]
[1770561959240,0.46061857,88.423,88.355,11.31792109]
[1770561959627,0.46061857,88.423,88.355,11.80527314]
[1770561959819,0.46061857,88.423,88.356,0.48735205]
[1770561960236,0.46061857,88.423,88.358,0.48735205]
[1770561960625,0.46061857,88.423,88.355,11.31792109]
[1770561960931,39.58201392,88.424,88.343,28.29856601]
[1770561960932,0.46061857,88.42,88.348,11.31882819]
[1770561961315,0.46061857,88.415,88.348,11.31882819]
[1770561961841,0.46061857,88.415,88.349,0.48735205]
[1770561963036,0.46061857,88.415,88.359,0.48735205]
[1770561963232,0.46061857,88.415,88.368,0.48735205]
[1770561963542,0.46061857,88.415,88.37,0.48735205]
[1770561963936,0.46061857,88.415,88.373,0.48735205]
[1770561964244,0.46061857,88.429,88.377,0.48735205]
[1770561964435,0.1,88.43,88.387,0.48735205]
[1770561966247,0.1,88.43,88.394,0.48735205]
[1770561966452,0.1,88.43,88.398,0.48735205]
[1770561967047,0.1,88.46,88.405,0.48735205]
[1770561967048,1e-08,88.44,88.405,0.48735205]
[1770561967248,1e-08,88.44,88.407,0.48735205]
[1770561968538,1e-08,88.44,88.412,0.48735205]
[1770561969132,0.46061858,88.44,88.408,11.31119355]
[1770561969447,0.46061858,88.44,88.408,11.7985456]
[1770561969629,0.46061858,88.44,88.408,11.31119355]
[1770561970239,0.46061858,88.44,88.406,0.48735205]
[1770561970633,0.46061858,88.44,88.407,11.3113215]
[1770561971348,0.46061857,88.438,88.386,0.48735205]
[1770561971640,0.46061857,88.438,88.398,11.312383]
[1770561973633,0.46061857,88.436,88.393,11.80046507]
[1770561974146,0.46061857,88.436,88.394,0.48735205]
[1770561975052,0.47194938,88.434,88.379,0.45460436]
[1770561975232,0.47194938,88.434,88.377,11.31515483]
[1770561975435,0.47194938,88.434,88.383,11.31430416]
[1770561975840,0.47194938,88.434,88.378,11.3149656]
[1770561976242,0.47194938,88.434,88.378,11.76956996]
[1770561977541,0.47194938,88.434,88.362,28.2925564]
[1770561977542,0.47194938,88.432,88.383,0.45460436]
[1770561982865,39.57798558,88.433,88.385,0.45460436]
[1770561982866,0.47194938,88.43,88.385,0.45460436]
[1770561984151,0.47194938,88.43,88.384,11.31426502]
[1770561984358,0.47194938,88.43,88.385,0.45460436]
[1770561985244,0.47194938,88.428,88.387,0.45460436]
[1770561987364,1e-08,88.44,88.387,0.45460436]
[1770561987365,0.47194938,88.426,88.387,0.45460436]
[1770561988257,0.47194938,88.426,88.388,11.31375299]
[1770561988561,0.47194938,88.426,88.383,0.45460436]
[1770561988752,0.47194938,88.426,88.376,0.45460436]
[1770561990274,0.47194938,88.424,88.376,0.45460436]
[1770561990656,0.47194938,88.424,88.373,11.31557124]
[1770561991768,0.47194938,88.422,88.373,0.45460436]
[1770561993651,0.47194938,88.42,88.373,0.45460436]
[1770561996456,0.47194938,88.418,88.373,0.45460436]
[1770561997470,0.47194938,88.416,88.373,0.45460436]
[1770561997969,0.47194938,88.416,88.359,0.45460436]
[1770561999153,0.47194938,88.416,88.335,5.13032502]
[1770561999154,0.47194938,88.433,88.364,0.45460436]
[1770561999354,0.47194938,88.432,88.377,0.45460436]
[1770561999548,0.47194938,88.432,88.379,0.45460436]
[1770562001375,1e-08,88.44,88.387,0.45460436]
[1770562001674,1e-08,88.44,88.389,0.45460436]
[1770562004474,1e-08,88.44,88.397,0.45460436]
[1770562004974,1e-08,88.44,88.402,0.45542365]
[1770562005172,1e-08,88.44,88.408,0.45542365]
[1770562006578,1e-08,88.44,88.41,0.45542365]
[1770562006754,1e-08,88.44,88.416,5.36086188]
[1770562006961,1e-08,88.44,88.409,39.58872964]
[1770562006962,1e-08,88.46,88.432,0.45542365]
[1770562007159,1e-08,88.46,88.431,5.13032502]
[1770562007160,1e-08,88.46,88.438,0.45542365]
[1770562008667,1e-08,88.46,88.44,0.45542365]
[1770562008879,0.49675962,88.459,88.439,11.30722871]
[1770562009059,0.49675962,88.459,88.439,9.84135456]
[1770562010481,0.49675962,88.459,88.419,28.72966983]
[1770562010868,0.49675962,88.459,88.42,0.45542365]
[1770562012486,0.49675962,88.459,88.421,0.45542365]
[1770562013684,0.49675962,88.459,88.423,0.45542365]
[1770562014791,1e-08,88.46,88.423,0.45542365]
[1770562015767,1e-08,88.46,88.425,0.45542365]
[1770562017993,1e-08,88.46,88.427,0.45542365]
[1770562018691,1e-08,88.46,88.437,0.45542365]
[1770562019784,1e-08,88.46,88.439,0.45542365]
[1770562021588,0.1,88.49,88.447,0.45542365]
[1770562021995,0.1,88.49,88.449,0.45542365]
[1770562022788,0.1,88.5,88.457,0.45542365]
[1770562024100,0.1,88.5,88.462,0.45542365]
[1770562024592,0.59675962,88.52,88.468,0.45542365]
[1770562024775,0.59675962,88.52,88.47,5.13032502]
[1770562024981,0.59675962,88.52,88.471,0.45542365]
[1770562025692,0.59675962,88.52,88.477,0.45542365]
[1770562025893,0.1,88.52,88.477,0.45542365]
[1770562026878,0.1,88.52,88.486,0.45542365]
[1770562027079,0.1,88.52,88.49,0.45542365]
[1770562027997,0.1,88.52,88.495,0.45542365]
[1770562029474,0.1,88.52,88.497,0.45542365]
[1770562029979,0.1,88.52,88.499,0.45542365]
[1770562031400,0.1,88.52,88.501,0.45542365]
[1770562031699,0.59675962,88.52,88.5,39.54802259]
[1770562032395,0.59675962,88.52,88.473,0.45542365]
[1770562032701,0.59675962,88.52,88.493,11.30021116]
[1770562033281,0.59675962,88.52,88.499,11.29944675]
[1770562033997,0.59675962,88.52,88.482,0.45542365]
[1770562033998,0.59675962,88.52,88.49,0.45542365]
[1770562034800,0.1,88.52,88.49,0.45542365]
[1770562035978,0.57762079,88.52,88.494,5.13032502]
[1770562036179,0.57762079,88.52,88.494,5.62480667]
[1770562037600,0.57762079,88.52,88.495,11.30007345]
[1770562037903,0.57762079,88.52,88.495,39.55025707]
[1770562038201,0.57762079,88.52,88.496,0.49448159]
[1770562040392,0.57762079,88.52,88.497,11.29981807]
[1770562040985,0.57762079,88.52,88.498,0.4]
[1770562042899,11.29700968,88.519,88.487,11.30101738]
[1770562043205,0.47762079,88.518,88.487,11.30101738]
[1770562043784,0.47762079,88.518,88.477,11.30230584]
[1770562044689,0.47762079,88.518,88.478,11.30223077]
[1770562045093,11.29726493,88.517,88.465,11.30390549]
[1770562045393,0.47762079,88.516,88.465,11.30390549]
[1770562045599,0.47762079,88.516,88.466,0.49967487]
[1770562048611,0.47762079,88.516,88.468,0.49967487]
[1770562048904,0.47762079,88.514,88.468,0.49967487]
[1770562049707,11.29777546,88.513,88.469,11.3033944]
[1770562049901,0.47762079,88.512,88.469,11.3033944]
[1770562050816,0.47762079,88.512,88.438,5.36086188]
[1770562050817,0.47762079,88.512,88.443,28.26675612]
[1770562051020,0.47762079,88.512,88.448,11.30602874]
[1770562051899,0.47762079,88.51,88.442,0.49967487]
[1770562053297,0.47762079,88.508,88.444,0.49967487]
[1770562054320,39.54489474,88.507,88.445,11.30646164]
[1770562054524,0.47762079,88.506,88.445,11.30646164]
[1770562055017,0.47762079,88.506,88.446,0.49967487]
[1770562056802,0.47762079,88.504,88.448,0.49967487]
[1770562057849,0.47762079,88.502,88.45,0.49967487]
[1770562059699,0.47762079,88.517,88.457,0.49967487]
[1770562059900,0.47762079,88.517,88.464,5.36086188]
[1770562060132,0.47762079,88.517,88.467,0.49967487]
[1770562060911,0.47762079,88.515,88.467,0.49967487]
[1770562062425,0.47762079,88.515,88.458,44.92766193]
[1770562062426,0.47762079,88.515,88.469,0.49967487]
[1770562064223,0.47762079,88.522,88.475,0.49967487]
[1770562064416,0.47762079,88.522,88.478,0.49967487]
[1770562064824,0.49341795,88.528,88.483,5.36086188]
[1770562065033,0.49341795,88.535,88.488,0.47899577]
[1770562065908,0.49341795,88.535,88.489,39.55293878]
[1770562066105,0.49341795,88.535,88.49,0.47899577]
[1770562068723,0.59341795,88.52,88.492,0.47899577]
[1770562070538,0.59341795,88.52,88.486,11.30112646]
[1770562070839,0.59341795,88.52,88.48,28.2548183]
[1770562071023,0.49341795,88.518,88.48,39.55680745]
[1770562071832,0.49341795,88.518,88.481,0.47899577]
[1770562073037,0.49341795,88.518,88.483,0.47899577]
[1770562076238,0.49341795,88.518,88.485,0.47899577]
[1770562076539,0.1,88.52,88.485,0.47899577]
[1770562078138,0.1,88.52,88.484,39.55517381]
[1770562078139,0.1,88.52,88.489,0.47899577]
[1770562079639,0.59341795,88.52,88.491,0.47899577]
[1770562080364,0.59341795,88.52,88.485,11.30129112]
[1770562080731,0.59341795,88.52,88.477,11.30225034]
[1770562081240,0.59341795,88.52,88.472,11.30293258]
[1770562081439,0.49341795,88.518,88.45,0.47899577]
[1770562081638,0.49341795,88.518,88.458,0.47899577]
[1770562083829,0.1,88.52,88.438,56.53627706]
[1770562083830,0.49341795,88.516,88.451,39.56993136]
[1770562084135,0.49341795,88.516,88.437,0.47899577]
[1770562084337,0.49341795,88.513,88.43,0.47899577]
[1770562084643,0.49341795,88.513,88.432,11.30801972]
[1770562085028,0.49341795,88.513,88.436,11.30756871]
[1770562085439,0.49341795,88.513,88.418,28.27469223]
[1770562085440,0.49341795,88.513,88.428,11.30852067]
[1770562085840,0.49341795,88.508,88.418,28.753688]
[1770562086042,0.49341795,88.508,88.419,0.47899577]
[1770562088650,0.49341795,88.503,88.421,0.47899577]
[1770562090933,0.49341795,88.498,88.423,0.47899577]
[1770562092348,0.49341795,88.498,88.427,0.47899577]
[1770562093552,0.49341795,88.496,88.429,0.47899577]
[1770562095659,0.45040852,88.494,88.431,0.46425947]
[1770562101461,0.45040852,88.492,88.433,0.46425947]
[1770562104141,0.45040852,88.49,88.435,0.46425947]
[1770562104341,0.45040852,88.49,88.437,0.46425947]
[1770562107268,0.45040852,88.49,88.439,0.46425947]
[1770562108352,0.45040852,88.488,88.439,0.46425947]
[1770562112565,0.45040852,88.486,88.441,0.46425947]
[1770562115259,0.45040852,88.484,88.443,0.46425947]
[1770562118060,0.45040852,88.484,88.445,0.46425947]
[1770562118874,0.45040852,88.482,88.445,0.46425947]
[1770562119063,0.45040852,88.482,88.429,28.27103298]
[1770562119267,0.45040852,88.482,88.442,11.30679925]
[1770562119788,0.45040852,88.482,88.444,11.30658948]
[1770562120162,0.45040852,88.48,88.417,0.46425947]
[1770562121878,0.45040852,88.477,88.411,11.31070569]
[1770562122261,0.45040852,88.472,88.402,11.31196126]
[1770562124273,0.45040852,88.467,88.402,11.31196126]
[1770562124868,0.45040852,88.467,88.392,11.31318238]
[1770562126272,0.49277072,88.465,88.383,11.31438048]
[1770562127988,0.49277072,88.46,88.383,11.31438048]
[1770562128883,5.13032502,88.456,88.383,11.31438048]
[1770562129188,0.49277072,88.455,88.383,11.31438048]
[1770562130986,0.49277072,88.45,88.388,0.4807232]
[1770562131182,0.49277072,88.45,88.383,11.31438048]
[1770562131370,0.49277072,88.45,88.39,0.6807232]
[1770562132570,5.13032502,88.446,88.391,0.4807232]
[1770562132787,0.49277072,88.445,88.391,0.4807232]
[1770562133489,0.49277072,88.445,88.39,0.2]
[1770562133785,0.49277072,88.443,88.392,0.4807232]
[1770562134989,0.49277072,88.441,88.392,0.4807232]
[1770562135371,0.49277072,88.441,88.39,0.2]
[1770562137576,39.57485299,88.44,88.39,0.6807232]
[1770562137782,0.49277072,88.439,88.39,0.6807232]
[1770562138174,0.49277072,88.439,88.391,0.4807232]
[1770562140192,0.49277072,88.434,88.39,0.2]
[1770562140421,0.49277072,88.434,88.371,0.4807232]
[1770562141792,0.49277072,88.434,88.381,0.4807232]
[1770562147006,0.49277072,88.429,88.381,0.4807232]
[1770562149282,0.49277072,88.424,88.369,0.4807232]
[1770562149489,0.49277072,88.424,88.35,0.4807232]
[1770562149995,0.49277072,88.424,88.354,0.4807232]
[1770562151794,0.49277072,88.419,88.354,0.4807232]
[1770562153198,39.58469994,88.418,88.356,0.4807232]
[1770562153402,0.49277072,88.414,88.356,0.4807232]
[1770562160199,0.48280946,88.409,88.35,0.45960927]
[1770562162817,0.48280946,88.404,88.341,0.45960927]
[1770562164404,0.48280946,88.4,88.341,0.45960927]
[1770562164609,0.48280946,88.399,88.34,0.2]
[1770562164811,0.48280946,88.394,88.332,0.45960927]
[1770562165014,0.48280946,88.39,88.332,0.45960927]
[1770562165219,0.48280946,88.389,88.332,0.45960927]
[1770562167123,0.48280946,88.384,88.332,0.45960927]
[1770562167618,0.48280946,88.384,88.334,0.45960927]
[1770562169022,0.48280946,88.382,88.336,0.45960927]
[1770562171215,0.48280946,88.38,88.338,0.45960927]
[1770562174630,10.31490462,88.379,88.341,0.094479]
[1770562174820,10.22042563,88.379,88.339,11.32002852]
[1770562177131,0.50000024,88.389,88.334,28.30160768]
[1770562178927,0.50000024,88.387,88.331,11.32105376]
[1770562180728,0.50000024,88.387,88.331,39.62368816]
[1770562184525,17.19500453,88.393,88.331,39.62368816]
[1770562184834,11.3132349,88.393,88.331,39.62368816]
[1770562185138,11.31255758,88.398,88.335,5.36086188]
[1770562186440,11.31255758,88.398,88.337,5.36086188]
[1770562188047,0.50000024,88.408,88.338,39.62054834]
[1770562189937,0.50000024,88.406,88.338,39.62054834]
[1770562191241,0.50000024,88.404,88.338,39.62054834]
[1770562191945,0.50000024,88.404,88.342,10.4911869]
[1770562193243,0.50000024,88.404,88.344,5.36086188]
[1770562193630,0.50000024,88.402,88.344,5.36086188]
[1770562196133,0.50000024,88.402,88.346,5.36086188]
[1770562196732,0.50000024,88.4,88.346,5.36086188]
[1770562198140,0.50000024,88.4,88.347,39.61651215]
[1770562199651,0.50000024,88.398,88.347,39.61651215]
[1770562200475,0.50000024,88.396,88.339,11.31990838]
[1770562200623,0.50000024,88.396,88.33,0.2]
[1770562200624,0.50000024,88.396,88.343,11.31944803]
[1770562200819,0.50000024,88.396,88.343,39.61823797]
[1770562201025,0.50000024,88.396,88.344,5.36086188]
[1770562202242,0.50000024,88.396,88.346,5.36086188]
[1770562203044,56.54389047,88.427,88.346,5.36086188]
[1770562203045,0.50000024,88.41,88.354,5.36086188]
[1770562204351,0.50000024,88.41,88.356,5.36086188]
[1770562205856,0.50000024,88.41,88.357,39.61202847]
[1770562206061,0.50000024,88.437,88.365,5.36086188]
[1770562206249,0.50000024,88.437,88.368,5.13032502]
[1770562209865,0.50000024,88.435,88.372,5.13032502]
[1770562210361,0.50000024,88.435,88.373,5.36086188]
[1770562212239,0.50000024,88.435,88.375,5.36086188]
[1770562214049,0.50000024,88.435,88.378,5.13032502]
[1770562217566,0.50000024,88.435,88.382,5.13032502]
[1770562217965,0.50000024,88.435,88.383,5.36086188]
[1770562219176,0.50000024,88.441,88.385,5.36086188]
[1770562219479,0.50000024,88.441,88.389,5.36086188]
[1770562219764,0.50000024,88.441,88.393,5.36086188]
[1770562220669,0.50000024,88.441,88.395,5.36086188]
[1770562221574,0.50000024,88.441,88.397,5.36086188]
[1770562222675,0.50000024,88.441,88.398,39.59365596]
[1770562227162,0.50000024,88.441,88.398,28.28118283]
[1770562235281,11.30313888,88.471,88.407,0.45601888]
[1770562237287,0.47986461,88.468,88.409,0.45601888]
[1770562239386,0.47986461,88.466,88.41,11.31093767]
[1770562239589,0.47986461,88.466,88.411,0.45601888]
[1770562241479,0.47986461,88.464,88.413,0.45601888]
[1770562243679,28.25912487,88.467,88.415,0.45601888]
[1770562243680,0.47986461,88.462,88.415,0.45601888]
[1770562243991,0.47986461,88.462,88.414,11.31042595]
[1770562245697,0.4686197,88.46,88.409,11.31106561]
[1770562246395,0.4686197,88.46,88.41,0.49611082]
[1770562247298,0.4686197,88.458,88.411,11.31080974]
[1770562248603,0.4686197,88.458,88.412,0.49611082]
[1770562250401,0.4686197,88.456,88.414,0.49611082]
[1770562251608,0.4686197,88.479,88.418,0.49611082]
[1770562251896,0.4686197,88.478,88.418,0.49611082]
[1770562252487,0.4686197,88.476,88.42,0.49611082]
[1770562254790,0.4686197,88.476,88.422,0.49611082]
[1770562255999,0.4686197,88.474,88.422,0.49611082]
[1770562259002,0.4686197,88.472,88.424,0.49611082]
[1770562260301,0.4686197,88.47,88.426,0.49611082]
[1770562262412,0.4686197,88.47,88.428,0.49611082]
[1770562264109,0.4686197,88.47,88.43,0.49611082]
[1770562267118,0.4686197,88.47,88.413,56.55276938]
[1770562267119,0.4686197,88.47,88.432,0.49611082]
[1770562269206,0.4686197,88.47,88.431,39.5788807]
[1770562269207,0.4686197,88.47,88.434,0.49611082]
[1770562269406,0.4686197,88.475,88.434,0.49611082]
[1770562270133,0.4686197,88.501,88.444,0.49611082]
[1770562270306,163.1,88.53,88.433,96.11796499]
[1770562270307,0.4686197,88.507,88.459,0.49611082]
[1770562270631,0.4686197,88.507,88.467,0.49611082]
[1770562270926,0.4686197,88.513,88.467,0.49611082]
[1770562271700,0.4686197,88.513,88.458,5.36086188]
[1770562271701,0.4686197,88.513,88.469,0.49611082]
[1770562273417,1e-08,88.52,88.474,0.49611082]
[1770562273622,1e-08,88.52,88.489,0.49611082]
[1770562273810,1e-08,88.52,88.494,0.49611082]
[1770562275022,0.1,88.53,88.493,5.13032502]
[1770562275023,0.1,88.53,88.498,0.46496752]
[1770562275408,0.49181899,88.559,88.497,0.47527572]
[1770562275930,0.49181899,88.559,88.507,0.47527572]
[1770562277015,0.49181899,88.559,88.517,0.47527572]
[1770562277927,0.49181899,88.559,88.519,0.47527572]
[1770562278233,0.49181899,88.557,88.519,0.47527572]
[1770562279324,0.49181899,88.557,88.521,0.47527572]
[1770562281232,0.49181899,88.557,88.522,11.29662682]
[1770562281428,0.49181899,88.557,88.523,0.47527572]
[1770562282034,0.49181899,88.555,88.522,11.29662682]
[1770562285634,0.49181899,88.553,88.502,11.29917967]
[1770562286716,0.49181899,88.553,88.478,28.73062234]
[1770562286916,0.49181899,88.55,88.471,0.47527572]
[1770562287839,0.49181899,88.545,88.472,11.30301112]
[1770562289133,0.49181899,88.545,88.464,11.30397202]
[1770562290329,0.49181899,88.54,88.46,0.47527572]
[1770562290542,39.52837007,88.544,88.463,0.47527572]
[1770562291243,39.52837007,88.544,88.464,5.36086188]
[1770562291431,11.29382002,88.544,88.478,0.47527572]
[1770562292242,28.23052467,88.557,88.48,0.47527572]
[1770562292423,0.49181899,88.556,88.48,0.47527572]
[1770562294337,0.49181899,88.554,88.482,0.47527572]
[1770562295821,0.49181899,88.551,88.482,0.47527572]
[1770562296027,0.49181899,88.551,88.481,11.30186141]
[1770562296435,0.49181899,88.546,88.476,11.30250011]
[1770562296644,0.49181899,88.546,88.471,11.30310238]
[1770562297127,0.49181899,88.546,88.471,11.7783781]
[1770562297328,0.49181899,88.546,88.475,11.3025932]
[1770562298152,0.49181899,88.546,88.475,11.77786892]
[1770562298842,0.49181899,88.541,88.47,11.30319888]
[1770562299049,0.49181899,88.541,88.463,0.47527572]
[1770562300333,0.49181899,88.536,88.464,11.30396724]
[1770562301136,0.49181899,88.536,88.465,0.47527572]
[1770562302773,0.49181899,88.531,88.467,0.47527572]
[1770562306149,0.45509224,88.529,88.469,0.47667823]
[1770562307560,0.45509224,88.527,88.471,0.47667823]
[1770562309661,11.29611639,88.526,88.472,11.30301112]
[1770562309875,0.45509224,88.525,88.473,0.47667823]
[1770562312266,0.45509224,88.523,88.475,0.47667823]
[1770562314066,0.45509224,88.521,88.477,0.47667823]
[1770562315165,5.86030893,88.549,88.477,0.47667823]
[1770562315166,0.45509224,88.527,88.477,0.47667823]
[1770562316148,0.45509224,88.525,88.479,0.47667823]
[1770562320601,0.45509224,88.523,88.481,0.47667823]
[1770562322458,0.45509224,88.521,88.483,0.47667823]
[1770562324462,0.45509224,88.533,88.485,0.47667823]
[1770562324688,0.45509224,88.532,88.485,0.47667823]
[1770562328675,0.45509224,88.532,88.463,5.36086188]
[1770562328676,0.45509224,88.53,88.487,0.47667823]
[1770562330682,0.45509224,88.528,88.489,0.47667823]
[1770562332972,0.45509224,88.528,88.491,0.47667823]
[1770562335193,0.45509224,88.528,88.493,0.48724865]
[1770562335488,0.47738101,88.526,88.493,0.48724865]
[1770562337071,0.47738101,88.526,88.495,0.48724865]
[1770562337381,11.29624399,88.525,88.463,5.36086188]
[1770562337586,0.47738101,88.524,88.483,0.48724865]
[1770562338091,0.47738101,88.524,88.487,0.48724865]
[1770562341190,0.47738101,88.522,88.487,0.48724865]
[1770562342795,11.29675444,88.521,88.487,0.48724865]
[1770562343107,11.29675444,88.521,88.489,0.48724865]
[1770562345791,0.47738101,88.526,88.491,0.48724865]
[1770562346477,102.9,88.559,88.491,0.48724865]
[1770562346478,0.47738101,88.545,88.491,0.48724865]
[1770562347798,0.47738101,88.543,88.493,0.48724865]
[1770562349996,0.47738101,88.541,88.495,0.48724865]
[1770562350506,0.47738101,88.541,88.464,5.13032502]
[1770562350507,0.47738101,88.538,88.466,0.48724865]
[1770562351386,0.47738101,88.538,88.483,0.48724865]
[1770562352406,0.47738101,88.536,88.487,0.48724865]
[1770562355001,0.47738101,88.534,88.487,0.48724865]
[1770562356904,0.47738101,88.534,88.486,11.30119847]
[1770562356905,0.47738101,88.529,88.38,0.2]
[1770562357200,0.47738101,88.524,88.454,0.48724865]
[1770562357592,0.47738101,88.519,88.454,0.48724865]
[1770562358121,0.47738101,88.514,88.456,0.48724865]
[1770562359510,0.47738101,88.512,88.456,0.48724865]
[1770562360414,0.47738101,88.512,88.45,0.48724865]
[1770562360791,0.47738101,88.509,88.45,0.48724865]
[1770562361710,0.47738101,88.504,88.45,0.48724865]
[1770562363999,0.47738101,88.502,88.45,0.48724865]
[1770562364299,5.13032502,88.5,88.407,0.50000002]
[1770562364602,5.13032502,88.496,88.417,0.50000002]
[1770562365004,5.13032502,88.494,88.422,0.50000002]
[1770562365196,5.13032502,88.494,88.426,0.50000002]
[1770562365720,5.13032502,88.496,88.436,0.50000002]
[1770562366017,5.13032502,88.492,88.436,0.50000002]
[1770562366420,39.55025707,88.495,88.438,0.50000002]
[1770562368115,28.25018362,88.495,88.438,0.50000002]
[1770562368610,28.25018362,88.495,88.44,0.50000002]
[1770562368909,11.299052,88.503,88.44,0.50000002]
[1770562370313,56.48133692,88.525,88.441,39.57440553]
[1770562370609,5.13032502,88.522,88.442,0.50000002]
[1770562371309,56.48133692,88.525,88.441,39.57440553]
[1770562371310,39.53417445,88.531,88.446,0.50000002]
[1770562371614,5.13032502,88.528,88.45,0.50000002]
[1770562373702,28.23869604,88.531,88.46,0.50000002]
[1770562373908,28.23869604,88.531,88.456,5.13032502]
[1770562373909,11.29420268,88.541,88.47,0.50000002]
[1770562375808,28.23423018,88.546,88.472,0.50000002]
[1770562378814,28.23423018,88.546,88.474,0.50000002]
[1770562380020,28.23423018,88.546,88.476,0.50000002]
[1770562383530,28.23423018,88.546,88.478,0.50000002]
[1770562385536,28.23423018,88.546,88.48,0.50000002]